fUST/lending_fUST_20250205
["ID","MTS","AMOUNT","RATE_DAILY","PERIOD"]
[351712480,1738761055546,-501.7035594,0.00015714,2]
[351712483,1738761055560,-500.0,0.00015714,2]
[351712485,1738761055574,-500.0,0.00015714,2]
[351712488,1738761055588,-500.0,0.00015714,2]
[351712490,1738761055602,-500.0,0.00015714,2]
[351712493,1738761055617,-500.0,0.00015714,2]
[351712496,1738761055634,-1571.89,0.00015714,2]
[351712498,1738761055648,-500.0,0.00015714,2]
[351712501,1738761055664,-520.36,0.00015714,2]
[351712503,1738761055680,-761.45,0.00015714,2]
[351712506,1738761055694,-500.0,0.00015714,2]
[351712509,1738761055709,-500.0,0.00015714,2]
[351712511,1738761055724,-500.0,0.00015714,2]
[351712514,1738761055738,-500.0,0.00015714,2]
[351712516,1738761055753,-1207.37,0.00015714,2]
[351712519,1738761055767,-500.0,0.00015714,2]
[351712521,1738761055782,-500.0,0.00015714,2]
[351712524,1738761055797,-500.0,0.00015714,2]
[351712527,1738761055811,-500.0,0.00015714,2]
[351712529,1738761055826,-762.13,0.00015714,2]
[351712532,1738761055840,-500.0,0.00015714,2]
[351712534,1738761055855,-500.0,0.00015714,2]
[351712537,1738761055868,-500.0,0.00015714,2]
[351712539,1738761055885,-500.0,0.00015714,2]
[351712542,1738761055900,-500.0,0.00015714,2]
[351712545,1738761055916,-500.0,0.00015714,2]
[351712547,1738761055931,-500.0,0.00015714,2]
[351712550,1738761055946,-500.0,0.00015714,2]
[351712552,1738761055960,-500.0,0.00015714,2]
[351712555,1738761055975,-1427.15,0.00015714,2]
[351712557,1738761055992,-500.0,0.00015714,2]
[351712560,1738761056006,-1054.95,0.00015715,2]
[351712562,1738761056021,-500.0,0.00015715,2]
[351712565,1738761056038,-500.0,0.00015715,2]
[351712567,1738761056054,-1261.68,0.00015715,2]
[351712570,1738761056069,-500.0,0.00015715,2]
[351712572,1738761056083,-500.0,0.00015715,2]
[351712575,1738761056097,-500.0,0.00015715,2]
[351712577,1738761056111,-500.0,0.00015715,2]
[351712580,1738761056126,-581.22846419,0.00015715,2]
[351712582,1738761056140,-646.73,0.00015715,2]
[351712585,1738761056154,-426.86203742,0.00015715,2]
[351712587,1738761056168,-416.86913009,0.00015715,2]
[351712590,1738761056183,-2325.58,0.00015715,2]
[351712592,1738761056197,-525.23,0.00015715,2]
[351712595,1738761056211,-245.18116032,0.00015715,2]
[351712597,1738761056225,-579.23,0.00015715,2]
[351712600,1738761056238,-500.0,0.00015715,2]
[351712602,1738761056248,-500.0,0.00015715,2]
[351712604,1738761056257,-500.0,0.00015715,2]
[351712606,1738761056267,-500.0,0.00015715,2]
[351712608,1738761056277,-1733.21,0.00015715,2]
[351712610,1738761056286,-195.57799124,0.00015715,2]
[351712612,1738761056295,-500.0,0.00015715,2]
[351712614,1738761056306,-500.0,0.00015715,2]
[351712616,1738761056315,-1624.08,0.00015715,2]
[351712618,1738761056324,-500.0,0.00015715,2]
[351712645,1738761056556,-500.0,0.00015715,2]
[351712648,1738761056572,-434.36013699,0.00015715,2]
[351712650,1738761056581,-2792.23,0.00015715,2]
[351712652,1738761056591,-500.0,0.00015715,2]
[351712653,1738761056600,-1373.47,0.00015715,2]
[351712656,1738761056609,-504.7783934,0.00015715,2]
[351712657,1738761056619,-500.0,0.00015715,2]
[351712660,1738761056628,-500.0,0.00015715,2]
[351712662,1738761056638,-553.19216998,0.00015715,2]
[351712664,1738761056647,-500.0,0.00015715,2]
[351712666,1738761056656,-500.0,0.00015715,2]
[351712667,1738761056665,-566.43,0.00015715,2]
[351712670,1738761056674,-500.0,0.00015715,2]
[351712672,1738761056684,-500.0,0.00015715,2]
[351712673,1738761056693,-500.0,0.00015715,2]
[351712676,1738761056702,-500.0,0.00015715,2]
[351712678,1738761056711,-809.83,0.00015715,2]
[351712679,1738761056720,-1873.55,0.00015715,2]
[351712681,1738761056730,-500.0,0.00015715,2]
[351712682,1738761056739,-500.0,0.00015715,2]
[351712683,1738761056748,-566.5,0.00015715,2]
[351712684,1738761056757,-1007.03,0.00015715,2]
[351712685,1738761056766,-500.0,0.00015715,2]
[351712686,1738761056775,-500.0,0.00015715,2]
[351712687,1738761056784,-1295.27,0.00015715,2]
[351712688,1738761056794,-500.0,0.00015715,2]
[351712689,1738761056803,-2891.5,0.00015715,2]
[351712690,1738761056812,-500.0,0.00015715,2]
[351712691,1738761056820,-1125.34,0.00015715,2]
[351712692,1738761056829,-500.0,0.00015715,2]
[351712693,1738761056838,-500.0,0.00015715,2]
[351712694,1738761056848,-500.0,0.00015715,2]
[351712695,1738761056857,-500.0,0.00015715,2]
[351712696,1738761056866,-500.0,0.00015715,2]
[351712698,1738761056875,-500.0,0.00015715,2]
[351712699,1738761056886,-625.21,0.00015715,2]
[351712700,1738761056895,-500.0,0.00015715,2]
[351712702,1738761056905,-500.0,0.00015715,2]
[351712704,1738761056914,-500.0,0.00015715,2]
[351712706,1738761056923,-898.92,0.00015715,2]
[351712708,1738761056932,-735.14,0.00015715,2]
[351712710,1738761056942,-500.0,0.00015715,2]
[351712712,1738761056951,-500.0,0.00015715,2]
[351712714,1738761056961,-832.92,0.00015715,2]
[351712716,1738761056970,-683.22,0.00015715,2]
[351712718,1738761056984,-500.0,0.00015715,2]
[351712720,1738761056993,-886.68,0.00015715,2]
[351712722,1738761057003,-3502.52,0.00015715,2]
[351712724,1738761057012,-523.37030893,0.00015715,2]
[351712726,1738761057023,-502.92,0.00015715,2]
[351712728,1738761057033,-10786.37,0.00015715,2]
[351712730,1738761057042,-504.24523206,0.00015715,2]
[351712732,1738761057051,-500.0,0.00015715,2]
[351712734,1738761057062,-500.0,0.00015715,2]
[351712736,1738761057072,-508.6,0.00015715,2]
[351712738,1738761057081,-5156.55,0.00015715,2]
[351712740,1738761057090,-500.0,0.00015715,2]
[351712742,1738761057099,-500.0,0.00015715,2]
[351712744,1738761057108,-898.88,0.00015715,2]
[351712746,1738761057119,-4451.58,0.00015715,2]
[351712748,1738761057129,-3881.7,0.00015715,2]
[351712750,1738761057139,-500.0,0.00015715,2]
[351712752,1738761057148,-500.0,0.00015715,2]
[351712754,1738761057158,-892.03,0.00015715,2]
[351712756,1738761057167,-500.0,0.00015715,2]
[351712758,1738761057176,-500.0,0.00015715,2]
[351712760,1738761057186,-3203.91,0.00015715,2]
[351712762,1738761057195,-500.0,0.00015715,2]
[351712764,1738761057204,-500.0,0.00015715,2]
[351712766,1738761057214,-4492.35,0.00015715,2]
[351712768,1738761057223,-500.0,0.00015715,2]
[351712770,1738761057232,-500.0,0.00015715,2]
[351712772,1738761057241,-179.05636124,0.00015715,2]
[351712774,1738761057250,-500.0,0.00015715,2]
[351712776,1738761057259,-500.0,0.00015715,2]
[351712778,1738761057268,-500.0,0.00015715,2]
[351712780,1738761057277,-714.0,0.00015715,2]
[351712782,1738761057287,-500.0,0.00015715,2]
[351712784,1738761057296,-1521.81,0.00015715,2]
[351712786,1738761057305,-500.0,0.00015715,2]
[351712788,1738761057314,-1049.62,0.00015715,2]
[351712790,1738761057323,-715.84,0.00015715,2]
[351712792,1738761057333,-500.0,0.00015715,2]
[351712794,1738761057343,-500.0,0.00015715,2]
[351712796,1738761057352,-553.29,0.00015715,2]
[351712798,1738761057361,-690.36,0.00015715,2]
[351712800,1738761057371,-1517.01,0.00015715,2]
[351712802,1738761057380,-500.0,0.00015715,2]
[351712804,1738761057390,-421.66058047,0.00015715,2]
[351712806,1738761057399,-8798.38,0.00015715,2]
[351712808,1738761057410,-500.0,0.00015715,2]
[351712810,1738761057420,-500.0,0.00015715,2]
[351712812,1738761057429,-649.54,0.00015715,2]
[351712814,1738761057439,-1706.82,0.00015715,2]
[351712816,1738761057450,-500.0,0.00015715,2]
[351712818,1738761057459,-707.08,0.00015715,2]
[351712820,1738761057468,-500.0,0.00015715,2]
[351712822,1738761057477,-500.0,0.00015715,2]
[351712824,1738761057487,-500.0,0.00015715,2]
[351712826,1738761057496,-3317.91,0.00015715,2]
[351712828,1738761057505,-83.18764036,0.00015715,2]
[351712864,1738761057833,-1546.48235964,0.00015715,2]
[351712866,1738761057845,-500.0,0.00015715,2]
[351712868,1738761057854,-500.0,0.00015715,2]
[351712870,1738761057863,-500.0,0.00015715,2]
[351712872,1738761057873,-500.0,0.00015715,2]
[351712874,1738761057882,-1772.59,0.00015715,2]
[351712876,1738761057891,-1909.89,0.00015715,2]
[351712878,1738761057902,-717.2,0.00015715,2]
[351712880,1738761057911,-500.0,0.00015715,2]
[351712882,1738761057920,-500.0,0.00015715,2]
[351712884,1738761057930,-874.41,0.00015715,2]
[351712886,1738761057939,-500.0,0.00015715,2]
[351712888,1738761057948,-500.0,0.00015715,2]
[351712890,1738761057957,-500.0,0.00015715,2]
[351712892,1738761057967,-1078.31,0.00015715,2]
[351712894,1738761057977,-252.90944274,0.00015715,2]
[351712896,1738761057989,-500.0,0.00015715,2]
[351712898,1738761057998,-500.0,0.00015715,2]
[351712900,1738761058007,-828.9,0.00015715,2]
[351712902,1738761058017,-8818.29,0.00015715,2]
[351712904,1738761058027,-500.0,0.00015715,2]
[351712906,1738761058036,-561.75,0.00015715,2]
[351712908,1738761058046,-500.0,0.00015715,2]
[351712910,1738761058058,-179.86653735,0.00015715,2]
[351714139,1738761071794,303.51810451,0.00014922,2]
[351714141,1738761117336,8841.0734353,0.0001458,2]
[351714142,1738761387568,276.085466,0.00013973,2]
[351714144,1738761565654,260.403764,0.00014529,2]
[351714145,1738761702704,178.071284,0.00013699,2]
[351714146,1738761798334,153.02,0.000179,31]
[351714147,1738761798397,153.02,0.000179,31]
[351714148,1738761798440,153.02,0.000179,31]
[351714149,1738761804988,250.0,0.00014528,2]
[351714151,1738761962894,756.6797224,0.00014479,2]
[351714181,1738762232044,-300.0,0.00015473,2]
[351714182,1738762232054,-500.0,0.00015474,2]
[351714183,1738762232065,-1578.57,0.00015474,2]
[351714184,1738762232074,-6604.76,0.00015474,2]
[351714185,1738762232084,-2697.99,0.00015474,2]
[351714186,1738762232093,-500.0,0.00015474,2]
[351714187,1738762232102,-3911.07,0.00015474,2]
[351714188,1738762232112,-1365.38,0.00015474,2]
[351714189,1738762232121,-967.04,0.00015474,2]
[351714190,1738762232134,-500.0,0.00015474,2]
[351714191,1738762232144,-500.0,0.00015474,2]
[351714192,1738762232153,-16000.0,0.00015475,2]
[351714193,1738762232163,-8000.0,0.00015475,2]
[351714194,1738762232172,-25304.67014731,0.00015476,2]
[351714195,1738762232188,-1289.31172241,0.00015476,2]
[351714196,1738762232200,-3061.1948724,0.00015476,2]
[351714233,1738762237843,-500.0,0.00015474,2]
[351714235,1738762237853,-563.47,0.00015474,2]
[351714237,1738762237862,-500.0,0.00015474,2]
[351714239,1738762237871,-20334.33736838,0.00015476,2]
[351714241,1738762237881,-876.66,0.00015476,2]
[351714243,1738762237890,-908.4,0.00015476,2]
[351714245,1738762237899,-500.0,0.00015476,2]
[351714247,1738762237908,-11291.17,0.00015476,2]
[351714249,1738762237917,-990.15,0.00015476,2]
[351714251,1738762237926,-533.99,0.00015476,2]
[351714253,1738762237935,-18527.06,0.00015476,2]
[351714255,1738762237944,-654.35,0.00015476,2]
[351714257,1738762237954,-6770.95,0.00015476,2]
[351714259,1738762237963,-500.0,0.00015476,2]
[351714261,1738762237972,-8920.75,0.00015476,2]
[351714263,1738762237981,-3873.05,0.00015476,2]
[351714265,1738762237990,-500.0,0.00015476,2]
[351714267,1738762238000,-500.0,0.00015476,2]
[351714269,1738762238009,-2980.54,0.00015476,2]
[351714271,1738762238018,-1302.9,0.00015476,2]
[351714273,1738762238027,-625.69,0.00015476,2]
[351714275,1738762238037,-500.0,0.00015476,2]
[351714277,1738762238046,-1238.88,0.00015476,2]
[351714279,1738762238055,-500.0,0.00015476,2]
[351714281,1738762238065,-500.0,0.00015476,2]
[351714283,1738762238076,-1015.14,0.00015476,2]
[351714285,1738762238086,-3228.08,0.00015476,2]
[351714287,1738762238095,-3088.01,0.00015476,2]
[351714289,1738762238104,-7930.55,0.00015476,2]
[351714291,1738762238114,-12931.27,0.00015476,2]
[351714293,1738762238123,-632.73,0.00015476,2]
[351714295,1738762238132,-626.28,0.00015476,2]
[351714297,1738762238142,-621.85871814,0.00015476,2]
[351714299,1738762238151,-1156.54,0.00015477,2]
[351714301,1738762238160,-500.0,0.00015477,2]
[351714303,1738762238169,-592.83,0.00015477,2]
[351714305,1738762238178,-2131.78,0.00015477,2]
[351714307,1738762238188,-3475.05,0.00015477,2]
[351714309,1738762238199,-530.96,0.00015477,2]
[351714311,1738762238211,-500.0,0.00015477,2]
[351714313,1738762238220,-500.0,0.00015477,2]
[351714315,1738762238229,-1588.77,0.00015477,2]
[351714317,1738762238238,-1488.74,0.00015477,2]
[351714319,1738762238247,-2559.54,0.00015477,2]
[351714321,1738762238256,-1037.21,0.00015477,2]
[351714323,1738762238265,-1259.01,0.00015477,2]
[351714325,1738762238275,-500.0,0.00015477,2]
[351714327,1738762238284,-500.0,0.00015477,2]
[351714329,1738762238293,-500.0,0.00015477,2]
[351714331,1738762238302,-500.0,0.00015477,2]
[351714333,1738762238311,-1717.42,0.00015477,2]
[351714335,1738762238321,-519.29,0.00015477,2]
[351714337,1738762238330,-663.68,0.00015477,2]
[351714339,1738762238339,-500.0,0.00015477,2]
[351714341,1738762238353,-1187.34,0.00015477,2]
[351714344,1738762238364,-2650.55,0.00015477,2]
[351714345,1738762238373,-1820.73,0.00015477,2]
[351714347,1738762238382,-1031.56,0.00015477,2]
[351714349,1738762238393,-1645.43,0.00015477,2]
[351714351,1738762238402,-500.0,0.00015477,2]
[351714354,1738762238411,-854.13,0.00015477,2]
[351714356,1738762238422,-500.0,0.00015477,2]
[351714357,1738762238431,-500.0,0.00015477,2]
[351714359,1738762238441,-1580.38,0.00015477,2]
[351714362,1738762238451,-500.0,0.00015477,2]
[351714364,1738762238460,-500.0,0.00015477,2]
[351714365,1738762238470,-679.68,0.00015477,2]
[351714368,1738762238480,-257.85817039,0.00015477,2]
[351714370,1738762238489,-500.0,0.00015477,2]
[351714371,1738762238498,-1108.91,0.00015477,2]
[351714373,1738762238507,-500.0,0.00015477,2]
[351714375,1738762238516,-812.79,0.00015477,2]
[351714377,1738762238526,-500.0,0.00015477,2]
[351714379,1738762238535,-500.0,0.00015477,2]
[351714381,1738762238544,-2114.3,0.00015477,2]
[351714383,1738762238553,-500.0,0.00015477,2]
[351714385,1738762238562,-3210.64,0.00015477,2]
[351714387,1738762238571,-823.98,0.00015477,2]
[351714389,1738762238580,-9887.51,0.00015477,2]
[351714391,1738762238589,-3558.22,0.00015477,2]
[351714393,1738762238598,-4726.84,0.00015477,2]
[351714395,1738762238607,-500.0,0.00015477,2]
[351714397,1738762238616,-4080.62,0.00015477,2]
[351714399,1738762238626,-500.0,0.00015477,2]
[351714401,1738762238636,-500.0,0.00015477,2]
[351714402,1738762238646,-500.0,0.00015477,2]
[351714403,1738762238655,-500.0,0.00015477,2]
[351714404,1738762238664,-500.0,0.00015477,2]
[351714405,1738762238673,-500.0,0.00015477,2]
[351714406,1738762238683,-500.0,0.00015477,2]
[351714407,1738762238692,-1394.99,0.00015477,2]
[351714408,1738762238702,-2936.92,0.00015477,2]
[351714409,1738762238711,-656.19,0.00015477,2]
[351714410,1738762238720,-500.0,0.00015477,2]
[351714411,1738762238730,-4117.99,0.00015477,2]
[351714412,1738762238740,-559.21769704,0.00015477,2]
[351714413,1738762238749,-500.0,0.00015477,2]
[351714414,1738762238759,-1411.42,0.00015477,2]
[351714415,1738762238768,-1440.9,0.00015477,2]
[351714416,1738762238777,-982.98,0.00015477,2]
[351714417,1738762238786,-500.0,0.00015477,2]
[351714418,1738762238795,-500.0,0.00015477,2]
[351714419,1738762238805,-500.0,0.00015477,2]
[351714420,1738762238814,-500.0,0.00015477,2]
[351714421,1738762238823,-653.94,0.00015477,2]
[351714422,1738762238832,-668.99,0.00015477,2]
[351714423,1738762238842,-1514.7,0.00015477,2]
[351714424,1738762238851,-8275.04,0.00015477,2]
[351714425,1738762238860,-1106.76,0.00015477,2]
[351714426,1738762238870,-500.0,0.00015477,2]
[351714427,1738762238879,-500.0,0.00015477,2]
[351714428,1738762238888,-1585.42,0.00015477,2]
[351714429,1738762238900,-500.0,0.00015477,2]
[351714430,1738762238909,-657.43,0.00015477,2]
[351714431,1738762238918,-500.0,0.00015477,2]
[351714432,1738762238927,-1302.84,0.00015477,2]
[351714433,1738762238937,-500.0,0.00015477,2]
[351714434,1738762238947,-500.0,0.00015477,2]
[351714435,1738762238956,-500.0,0.00015477,2]
[351714436,1738762238965,-3069.18,0.00015477,2]
[351714437,1738762238974,-500.0,0.00015477,2]
[351714438,1738762238983,-698.62,0.00015477,2]
[351714439,1738762238993,-988.45,0.00015477,2]
[351714440,1738762239002,-1750.73,0.00015477,2]
[351714441,1738762239013,-500.0,0.00015477,2]
[351714442,1738762239022,-500.0,0.00015477,2]
[351714443,1738762239032,-500.0,0.00015477,2]
[351714444,1738762239042,-500.0,0.00015477,2]
[351714445,1738762239052,-514.94,0.00015477,2]
[351714446,1738762239061,-500.0,0.00015477,2]
[351714447,1738762239070,-500.0,0.00015477,2]
[351714448,1738762239079,-500.0,0.00015477,2]
[351714449,1738762239089,-500.0,0.00015477,2]
[351714450,1738762239098,-573.81,0.00015477,2]
[351714451,1738762239108,-500.0,0.00015477,2]
[351714452,1738762239117,-158.03693496,0.00015477,2]
[351714453,1738762239127,-500.0,0.00015477,2]
[351714454,1738762239138,-8083.43,0.00015477,2]
[351714455,1738762239148,-500.0,0.00015477,2]
[351714456,1738762239157,-500.0,0.00015477,2]
[351714457,1738762239167,-584.83,0.00015477,2]
[351714458,1738762239176,-500.0,0.00015477,2]
[351714459,1738762239185,-500.0,0.00015477,2]
[351714460,1738762239194,-500.0,0.00015477,2]
[351714461,1738762239203,-536.54576892,0.00015477,2]
[351714462,1738762239212,-500.0,0.00015477,2]
[351714463,1738762239222,-500.0,0.00015477,2]
[351714464,1738762239231,-256.5853929,0.00015477,2]
[351714465,1738762239241,-222.85905389,0.00015478,2]
[351714466,1738762239250,-500.0,0.00015478,2]
[351714467,1738762239260,-500.0,0.00015478,2]
[351714468,1738762239269,-500.0,0.00015478,2]
[351714469,1738762239279,-500.0,0.00015478,2]
[351714470,1738762239289,-500.0,0.00015478,2]
[351714471,1738762239298,-500.0,0.00015478,2]
[351714472,1738762239308,-500.0,0.00015478,2]
[351714473,1738762239317,-500.0,0.00015478,2]
[351714474,1738762239327,-500.0,0.00015478,2]
[351714475,1738762239337,-158.20876609,0.00015478,2]
[351714476,1738762239348,-500.0,0.00015478,2]
[351714477,1738762239359,-500.0,0.00015478,2]
[351714478,1738762239369,-500.0,0.00015478,2]
[351714479,1738762239379,-553.84,0.00015478,2]
[351714480,1738762239389,-500.0,0.00015478,2]
[351714481,1738762239400,-187.17761615,0.00015478,2]
[351714482,1738762239410,-621.73,0.00015478,2]
[351714483,1738762239420,-506.51224385,0.00015478,2]
[351714484,1738762239432,-500.0,0.00015478,2]
[351714485,1738762239446,-500.0,0.00015478,2]
[351714486,1738762239456,-500.0,0.00015478,2]
[351714488,1738762239466,-500.0,0.00015478,2]
[351714490,1738762239475,-500.0,0.00015478,2]
[351714492,1738762239484,-500.0,0.00015478,2]
[351714494,1738762239493,-500.0,0.00015478,2]
[351714495,1738762239502,-500.0,0.00015478,2]
[351714497,1738762239517,-500.0,0.00015478,2]
[351714499,1738762239536,-500.0,0.00015478,2]
[351714501,1738762239549,-521.1,0.00015478,2]
[351714502,1738762239562,-500.0,0.00015478,2]
[351714504,1738762239573,-500.0,0.00015478,2]
[351714506,1738762239585,-500.0,0.00015478,2]
[351714508,1738762239597,-500.0,0.00015478,2]
[351714510,1738762239609,-274.96370318,0.00015478,2]
[351714511,1738762239619,-519.22,0.00015478,2]
[351714513,1738762239628,-500.0,0.00015478,2]
[351714515,1738762239639,-500.0,0.00015478,2]
[351714516,1738762239648,-500.0,0.00015478,2]
[351714526,1738762239817,-500.0,0.00015478,2]
[351714527,1738762239828,-742.34,0.00015478,2]
[351714528,1738762239837,-1905.11,0.00015478,2]
[351714529,1738762239847,-500.0,0.00015478,2]
[351714530,1738762239856,-500.0,0.00015478,2]
[351714531,1738762239866,-500.0,0.00015478,2]
[351714532,1738762239875,-500.0,0.00015478,2]
[351714533,1738762239888,-751.76,0.00015478,2]
[351714534,1738762239897,-500.0,0.00015478,2]
[351714535,1738762239907,-500.0,0.00015478,2]
[351714536,1738762239917,-500.0,0.00015478,2]
[351714537,1738762239926,-500.0,0.00015478,2]
[351714538,1738762239935,-500.0,0.00015478,2]
[351714539,1738762239944,-923.11,0.00015478,2]
[351714541,1738762239952,-500.0,0.00015478,2]
[351714543,1738762239961,-500.0,0.00015478,2]
[351714544,1738762239970,-519.99234604,0.00015478,2]
[351714546,1738762239980,-500.0,0.00015478,2]
[351714548,1738762239989,-289.85139457,0.00015478,2]
[351714550,1738762239999,-500.0,0.00015478,2]
[351714552,1738762240009,-517.06471231,0.00015478,2]
[351714554,1738762240019,-581.221941,0.00015478,2]
[351714555,1738762240028,-1226.17,0.00015478,2]
[351714556,1738762240037,-500.0,0.00015478,2]
[351714557,1738762240046,-673.88,0.00015478,2]
[351714558,1738762240056,-504.73756369,0.00015478,2]
[351714559,1738762240065,-573.11,0.00015478,2]
[351714560,1738762240074,-500.0,0.00015478,2]
[351714561,1738762240083,-763.51,0.00015478,2]
[351714562,1738762240092,-824.01,0.00015478,2]
[351714563,1738762240102,-500.0,0.00015478,2]
[351714564,1738762240111,-170.91706599,0.00015478,2]
[351714565,1738762240120,-500.0,0.00015478,2]
[351714566,1738762240129,-500.0,0.00015478,2]
[351714567,1738762240140,-500.0,0.00015478,2]
[351714568,1738762240149,-500.0,0.00015478,2]
[351714569,1738762240158,-522.31791912,0.00015478,2]
[351714570,1738762240168,-500.0,0.00015478,2]
[351714571,1738762240177,-500.0,0.00015478,2]
[351714572,1738762240186,-817.69,0.00015478,2]
[351714573,1738762240196,-622.45327861,0.00015478,2]
[351714574,1738762240211,-500.0,0.00015478,2]
[351714575,1738762240220,-500.0,0.00015478,2]
[351714576,1738762240229,-500.0,0.00015478,2]
[351714577,1738762240238,-500.0,0.00015478,2]
[351714578,1738762240248,-500.0,0.00015478,2]
[351714579,1738762240258,-500.0,0.00015478,2]
[351714580,1738762240267,-500.0,0.00015478,2]
[351714581,1738762240276,-500.0,0.00015478,2]
[351714582,1738762240285,-500.0,0.00015478,2]
[351714583,1738762240295,-201.9818426,0.00015478,2]
[351714584,1738762240304,-500.0,0.00015478,2]
[351714585,1738762240313,-500.0,0.00015478,2]
[351714586,1738762240322,-500.0,0.00015478,2]
[351714587,1738762240331,-698.0,0.00015478,2]
[351714588,1738762240340,-654.5,0.00015478,2]
[351714589,1738762240351,-500.0,0.00015478,2]
[351714590,1738762240362,-500.0,0.00015478,2]
[351714591,1738762240371,-500.0,0.00015478,2]
[351714592,1738762240382,-500.0,0.00015478,2]
[351714593,1738762240391,-507.18,0.00015478,2]
[351714594,1738762240401,-500.0,0.00015478,2]
[351714595,1738762240411,-500.0,0.00015478,2]
[351714596,1738762240421,-500.0,0.00015478,2]
[351714597,1738762240431,-500.0,0.00015478,2]
[351714598,1738762240440,-605.85,0.00015478,2]
[351714599,1738762240450,-197.77364273,0.00015478,2]
[351714600,1738762240459,-500.0,0.00015478,2]
[351714601,1738762240468,-500.0,0.00015478,2]
[351714602,1738762240478,-500.0,0.00015478,2]
[351714603,1738762240487,-1308.22,0.00015478,2]
[351714604,1738762240497,-500.0,0.00015478,2]
[351714605,1738762240506,-500.0,0.00015478,2]
[351714606,1738762240515,-500.0,0.00015478,2]
[351714607,1738762240524,-500.0,0.00015478,2]
[351714608,1738762240534,-500.0,0.00015478,2]
[351714609,1738762240543,-822.38,0.00015478,2]
[351714610,1738762240553,-500.0,0.00015478,2]
[351714611,1738762240562,-500.0,0.00015478,2]
[351714612,1738762240571,-500.0,0.00015478,2]
[351714613,1738762240580,-500.0,0.00015478,2]
[351714614,1738762240589,-500.0,0.00015478,2]
[351714615,1738762240599,-500.0,0.00015478,2]
[351714616,1738762240608,-500.0,0.00015478,2]
[351714617,1738762240618,-759.83,0.00015478,2]
[351714618,1738762240628,-500.0,0.00015478,2]
[351714619,1738762240642,-500.0,0.00015478,2]
[351714620,1738762240651,-500.0,0.00015478,2]
[351714621,1738762240660,-500.0,0.00015478,2]
[351714622,1738762240669,-227.49803977,0.00015478,2]
[351714623,1738762240678,-500.0,0.00015478,2]
[351714624,1738762240687,-500.0,0.00015478,2]
[351714625,1738762240696,-500.0,0.00015478,2]
[351714626,1738762240705,-500.0,0.00015478,2]
[351714627,1738762240714,-500.0,0.00015478,2]
[351714628,1738762240724,-500.0,0.00015478,2]
[351714629,1738762240733,-500.0,0.00015478,2]
[351714630,1738762240742,-500.0,0.00015478,2]
[351714631,1738762240751,-500.0,0.00015478,2]
[351714632,1738762240761,-500.0,0.00015478,2]
[351714633,1738762240770,-500.0,0.00015478,2]
[351714634,1738762240779,-500.0,0.00015478,2]
[351714635,1738762240789,-500.0,0.00015478,2]
[351714636,1738762240798,-500.0,0.00015478,2]
[351714637,1738762240808,-500.0,0.00015478,2]